[Event "Early-Titled-Tuesday-Blitz-March-26-2024"]
[Site "Chess.com"]
[Date "2024.03.26"]
[Round "1"]
[White "DucksParadise"]
[Black "Iball95"]
[Result "1/2-1/2"]
[WhiteElo "2487"]
[BlackElo "2868"]
[TimeControl "180+1"]
[EndTime "8:08:57 PDT"]
[Termination "Game drawn - insufficient material"]

1. e4 {[%clk 0:03:00.9]} 1... c5 {[%clk 0:02:59.6]} 2. Nf3 {[%clk 0:03:00.4]}
2... e6 {[%clk 0:03:00.1]} 3. b3 {[%clk 0:03:00.2]} 3... Nc6 {[%clk 0:03:00.5]}
4. Bb2 {[%clk 0:02:57.6]} 4... a6 {[%clk 0:03:00.6]} 5. c4 {[%clk 0:02:56.4]}
5... Nf6 {[%clk 0:02:59.6]} 6. e5 {[%clk 0:02:49.1]} 6... Ng4 {[%clk 0:02:56.9]}
7. h3 {[%clk 0:02:45.3]} 7... Nh6 {[%clk 0:02:55.7]} 8. Bd3 {[%clk 0:02:35.5]}
8... d5 {[%clk 0:02:46.2]} 9. exd6 {[%clk 0:02:33.4]} 9... f6 {[%clk 0:02:43.9]}
10. Be4 {[%clk 0:02:25.7]} 10... Bd7 {[%clk 0:02:21]} 11. O-O {[%clk 0:02:16.7]}
11... Bxd6 {[%clk 0:02:21.2]} 12. d4 {[%clk 0:02:16.3]} 12... cxd4 {[%clk
0:02:21.4]} 13. Nxd4 {[%clk 0:02:17.2]} 13... O-O {[%clk 0:02:10.9]} 14. Qc2
{[%clk 0:01:58.8]} 14... f5 {[%clk 0:02:04.8]} 15. Nxc6 {[%clk 0:01:52.3]} 15...
Bxc6 {[%clk 0:01:59]} 16. Bxc6 {[%clk 0:01:51.9]} 16... bxc6 {[%clk 0:01:59.9]}
17. Rd1 {[%clk 0:01:47.3]} 17... Qc7 {[%clk 0:01:53.1]} 18. Qc3 {[%clk
0:01:36.9]} 18... Rad8 {[%clk 0:01:48.5]} 19. Nd2 {[%clk 0:01:36.3]} 19... Rf7
{[%clk 0:01:37.5]} 20. Nf3 {[%clk 0:01:34.9]} 20... Rfd7 {[%clk 0:01:37.9]} 21.
Kh1 {[%clk 0:01:18.4]} 21... Bf8 {[%clk 0:01:34.1]} 22. Rxd7 {[%clk 0:01:15.7]}
22... Rxd7 {[%clk 0:01:35]} 23. Re1 {[%clk 0:01:10.2]} 23... Qd6 {[%clk
0:01:24.6]} 24. Qe3 {[%clk 0:00:40.8]} 24... Re7 {[%clk 0:01:17.3]} 25. Bd4
{[%clk 0:00:34.8]} 25... Re8 {[%clk 0:01:13]} 26. Ne5 {[%clk 0:00:30.7]} 26...
Nf7 {[%clk 0:01:09.2]} 27. Nxf7 {[%clk 0:00:28.7]} 27... Kxf7 {[%clk 0:01:10.1]}
28. Be5 {[%clk 0:00:26.9]} 28... Qc5 {[%clk 0:01:06.7]} 29. Qf3 {[%clk
0:00:26.3]} 29... Rd8 {[%clk 0:01:04.6]} 30. Qh5+ {[%clk 0:00:24.4]} 30... Kg8
{[%clk 0:01:05]} 31. Bg3 {[%clk 0:00:22.4]} 31... Qe7 {[%clk 0:00:35.9]} 32. Bh4
{[%clk 0:00:19]} 32... Qb4 {[%clk 0:00:36]} 33. Qe2 {[%clk 0:00:16.7]} 33... Re8
{[%clk 0:00:34.6]} 34. Bg3 {[%clk 0:00:16.4]} 34... Bd6 {[%clk 0:00:29.7]} 35.
Bxd6 {[%clk 0:00:15.8]} 35... Qxd6 {[%clk 0:00:30.6]} 36. Rd1 {[%clk 0:00:16.7]}
36... Qe7 {[%clk 0:00:30.1]} 37. Qe5 {[%clk 0:00:16.5]} 37... Kf7 {[%clk
0:00:26.6]} 38. Rd6 {[%clk 0:00:17]} 38... Rc8 {[%clk 0:00:25.9]} 39. c5 {[%clk
0:00:17]} 39... a5 {[%clk 0:00:25.8]} 40. g4 {[%clk 0:00:16.5]} 40... Qf6 {[%clk
0:00:23.7]} 41. Rd7+ {[%clk 0:00:15.7]} 41... Kg6 {[%clk 0:00:23.8]} 42. Qxf6+
{[%clk 0:00:15.4]} 42... Kxf6 {[%clk 0:00:24.7]} 43. gxf5 {[%clk 0:00:15.9]}
43... exf5 {[%clk 0:00:24.3]} 44. Kg2 {[%clk 0:00:16.4]} 44... h6 {[%clk
0:00:22.6]} 45. f4 {[%clk 0:00:16.2]} 45... g5 {[%clk 0:00:22.9]} 46. Kf3 {[%clk
0:00:16.4]} 46... Re8 {[%clk 0:00:19.9]} 47. Rd6+ {[%clk 0:00:16]} 47... Re6
{[%clk 0:00:20.2]} 48. Rd7 {[%clk 0:00:15.2]} 48... Re4 {[%clk 0:00:20.3]} 49.
Rd6+ {[%clk 0:00:15.2]} 49... Re6 {[%clk 0:00:20.4]} 50. Rd7 {[%clk 0:00:15.5]}
50... gxf4 {[%clk 0:00:16]} 51. Kxf4 {[%clk 0:00:15.3]} 51... Re4+ {[%clk
0:00:16.6]} 52. Kf3 {[%clk 0:00:15.8]} 52... Re6 {[%clk 0:00:14.4]} 53. Kf4
{[%clk 0:00:15.6]} 53... Re4+ {[%clk 0:00:14.2]} 54. Kf3 {[%clk 0:00:16.2]}
54... a4 {[%clk 0:00:14.9]} 55. bxa4 {[%clk 0:00:15.5]} 55... Rxa4 {[%clk
0:00:15.2]} 56. Rd6+ {[%clk 0:00:15.9]} 56... Ke5 {[%clk 0:00:15.7]} 57. Rxc6
{[%clk 0:00:16]} 57... Ra3+ {[%clk 0:00:16.5]} 58. Kg2 {[%clk 0:00:16.1]} 58...
Rxa2+ {[%clk 0:00:17.4]} 59. Kg3 {[%clk 0:00:15.9]} 59... Ra3+ {[%clk
0:00:17.1]} 60. Kg2 {[%clk 0:00:16.1]} 60... Rc3 {[%clk 0:00:15.9]} 61. Rxh6
{[%clk 0:00:15.8]} 61... Rxc5 {[%clk 0:00:16.1]} 62. Rh4 {[%clk 0:00:15.9]}
62... Rc2+ {[%clk 0:00:15.7]} 63. Kf3 {[%clk 0:00:16.2]} 63... Rc3+ {[%clk
0:00:16.6]} 64. Kf2 {[%clk 0:00:16.7]} 64... Ra3 {[%clk 0:00:16.7]} 65. Ke2
{[%clk 0:00:16.8]} 65... Kf6 {[%clk 0:00:16.9]} 66. Kf2 {[%clk 0:00:16.8]} 66...
Kg5 {[%clk 0:00:17.3]} 67. Rb4 {[%clk 0:00:17.5]} 67... Rxh3 {[%clk 0:00:17.7]}
68. Kg2 {[%clk 0:00:17.4]} 68... Rd3 {[%clk 0:00:17.4]} 69. Kf2 {[%clk
0:00:17.8]} 69... Rc3 {[%clk 0:00:17.8]} 70. Kg2 {[%clk 0:00:18.2]} 70... Rd3
{[%clk 0:00:17.9]} 71. Kf2 {[%clk 0:00:18.8]} 71... Rd5 {[%clk 0:00:17.8]} 72.
Kg2 {[%clk 0:00:19.2]} 72... Re5 {[%clk 0:00:18]} 73. Kf2 {[%clk 0:00:19.8]}
73... Re6 {[%clk 0:00:18.1]} 74. Kg2 {[%clk 0:00:20]} 74... Re4 {[%clk
0:00:17.1]} 75. Rxe4 {[%clk 0:00:19.2]} 75... fxe4 {[%clk 0:00:18]} 76. Kf2
{[%clk 0:00:19.8]} 76... Kf4 {[%clk 0:00:18.9]} 77. Ke2 {[%clk 0:00:20.3]} 77...
Kf5 {[%clk 0:00:19.8]} 78. Ke3 {[%clk 0:00:21.1]} 78... Ke5 {[%clk 0:00:20.7]}
79. Ke2 {[%clk 0:00:21.6]} 79... Kd5 {[%clk 0:00:21.6]} 80. Ke3 {[%clk
0:00:22.5]} 80... Ke5 {[%clk 0:00:22.2]} 81. Ke2 {[%clk 0:00:23.4]} 81... Kd4
{[%clk 0:00:23.1]} 82. Kd2 {[%clk 0:00:23.7]} 82... e3+ {[%clk 0:00:24]} 83. Ke2
{[%clk 0:00:23.9]} 83... Ke4 {[%clk 0:00:24.9]} 84. Ke1 {[%clk 0:00:24.3]} 84...
Kd4 {[%clk 0:00:25.3]} 85. Ke2 {[%clk 0:00:25.2]} 85... Ke4 {[%clk 0:00:26]} 86.
Ke1 {[%clk 0:00:25.7]} 86... Kf4 {[%clk 0:00:26.9]} 87. Ke2 {[%clk 0:00:26.6]}
87... Kf5 {[%clk 0:00:27.6]} 88. Kxe3 {[%clk 0:00:26.9]} 1/2-1/2

[Event "Early-Titled-Tuesday-Blitz-March-26-2024"]
[Site "Chess.com"]
[Date "2024.03.26"]
[Round "1"]
[White "masnyszachistaaa"]
[Black "abelmat"]
[Result "1-0"]
[WhiteElo "2572"]
[BlackElo "2086"]
[TimeControl "180+1"]
[EndTime "8:08:57 PDT"]
[Termination "masnyszachistaaa won by checkmate"]

1. Nf3 {[%clk 0:03:00]} 1... Nf6 {[%clk 0:02:57.5]} 2. b3 {[%clk 0:02:58.5]}
2... e6 {[%clk 0:02:55.3]} 3. Bb2 {[%clk 0:02:58]} 3... d5 {[%clk 0:02:55.4]} 4.
e3 {[%clk 0:02:45.4]} 4... c5 {[%clk 0:02:54.1]} 5. Bb5+ {[%clk 0:02:40.7]} 5...
Bd7 {[%clk 0:02:52.2]} 6. Qe2 {[%clk 0:02:39.7]} 6... Be7 {[%clk 0:02:48.1]} 7.
Ne5 {[%clk 0:02:22.7]} 7... O-O {[%clk 0:02:43.2]} 8. Bxd7 {[%clk 0:02:12.6]}
8... Nbxd7 {[%clk 0:02:42.4]} 9. O-O {[%clk 0:02:12.6]} 9... Nxe5 {[%clk
0:02:41.3]} 10. Bxe5 {[%clk 0:02:13.2]} 10... Nd7 {[%clk 0:02:40.3]} 11. Bb2
{[%clk 0:02:11.7]} 11... Bf6 {[%clk 0:02:40]} 12. d4 {[%clk 0:02:06.4]} 12...
cxd4 {[%clk 0:02:36.3]} 13. exd4 {[%clk 0:02:07.3]} 13... Rc8 {[%clk 0:02:33.5]}
14. c4 {[%clk 0:02:03.2]} 14... dxc4 {[%clk 0:02:25.8]} 15. bxc4 {[%clk
0:02:04.1]} 15... Nb6 {[%clk 0:02:26]} 16. c5 {[%clk 0:01:53.6]} 16... Nd5
{[%clk 0:02:25.1]} 17. Nd2 {[%clk 0:01:51.1]} 17... b6 {[%clk 0:02:17.2]} 18.
Ne4 {[%clk 0:01:29.3]} 18... Nf4 {[%clk 0:02:12.3]} 19. Qf3 {[%clk 0:01:00]}
19... Nd5 {[%clk 0:01:48.2]} 20. Rfd1 {[%clk 0:00:52.9]} 20... Qe7 {[%clk
0:01:39.3]} 21. Nd6 {[%clk 0:00:48.3]} 21... Rc6 {[%clk 0:01:19.2]} 22. Ba3
{[%clk 0:00:16.8]} 22... b5 {[%clk 0:00:57.2]} 23. Nxb5 {[%clk 0:00:15.5]} 23...
Qb7 {[%clk 0:00:38.6]} 24. Nd6 {[%clk 0:00:14.5]} 24... Qa6 {[%clk 0:00:38.4]}
25. Bb2 {[%clk 0:00:12.9]} 25... Rb8 {[%clk 0:00:20.4]} 26. Rd2 {[%clk
0:00:13.3]} 26... Rb4 {[%clk 0:00:19.6]} 27. a3 {[%clk 0:00:11.2]} 27... Rb8
{[%clk 0:00:17]} 28. h3 {[%clk 0:00:11]} 28... h6 {[%clk 0:00:15.9]} 29. Ne4
{[%clk 0:00:11.4]} 29... Rc7 {[%clk 0:00:10.2]} 30. Qg3 {[%clk 0:00:11.6]} 30...
Rcb7 {[%clk 0:00:09.2]} 31. Ra2 {[%clk 0:00:07.8]} 31... Qc4 {[%clk 0:00:07.2]}
32. Nd6 {[%clk 0:00:05.6]} 32... Qxa2 {[%clk 0:00:06.4]} 33. Nxb7 {[%clk
0:00:06]} 33... Qb1+ {[%clk 0:00:05.5]} 34. Kh2 {[%clk 0:00:05.7]} 34... Rxb7
{[%clk 0:00:05.5]} 35. c6 {[%clk 0:00:04.9]} 35... Rxb2 {[%clk 0:00:05.4]} 36.
Rxb2 {[%clk 0:00:05.6]} 36... Qxb2 {[%clk 0:00:05.6]} 37. Qd6 {[%clk 0:00:06.5]}
37... Qxd4 {[%clk 0:00:03.9]} 38. Qb8+ {[%clk 0:00:03.9]} 38... Kh7 {[%clk
0:00:03.5]} 39. Kg1 {[%clk 0:00:03.4]} 39... Be5 {[%clk 0:00:04.4]} 40. Qb1+
{[%clk 0:00:02.1]} 40... Qe4 {[%clk 0:00:03.7]} 41. Qf1 {[%clk 0:00:03]} 41...
Qf5 {[%clk 0:00:03.5]} 42. g3 {[%clk 0:00:03.4]} 42... Bc7 {[%clk 0:00:04.4]}
43. Qg2 {[%clk 0:00:04]} 43... Qf6 {[%clk 0:00:04.2]} 44. Qe4+ {[%clk
0:00:04.1]} 44... Qg6 {[%clk 0:00:03.8]} 45. Qe2 {[%clk 0:00:05]} 45... f5
{[%clk 0:00:03.7]} 46. h4 {[%clk 0:00:05.2]} 46... f4 {[%clk 0:00:04.6]} 47. g4
{[%clk 0:00:05]} 47... Qf6 {[%clk 0:00:04.3]} 48. f3 {[%clk 0:00:05.4]} 48...
Qd4+ {[%clk 0:00:04.3]} 49. Qf2 {[%clk 0:00:05.5]} 49... Qc4 {[%clk 0:00:04.4]}
50. Qd2 {[%clk 0:00:05.1]} 50... Qxc6 {[%clk 0:00:05.3]} 51. Qd3+ {[%clk
0:00:05.3]} 51... g6 {[%clk 0:00:05.1]} 52. h5 {[%clk 0:00:05.4]} 52... Qd7
{[%clk 0:00:06]} 53. Qxg6+ {[%clk 0:00:05.3]} 53... Kh8 {[%clk 0:00:03.6]} 54.
Qxh6+ {[%clk 0:00:06.2]} 54... Kg8 {[%clk 0:00:03.7]} 55. Qg6+ {[%clk
0:00:06.5]} 55... Kf8 {[%clk 0:00:04.6]} 56. h6 {[%clk 0:00:06.6]} 56... Ke7
{[%clk 0:00:05.5]} 57. h7 {[%clk 0:00:06.8]} 57... Bb6+ {[%clk 0:00:05.7]} 58.
Kh2 {[%clk 0:00:06.3]} 58... Qb5 {[%clk 0:00:06.4]} 59. Qg7+ {[%clk 0:00:06.3]}
59... Kd6 {[%clk 0:00:06.6]} 60. h8=Q {[%clk 0:00:04]} 60... Qe2+ {[%clk
0:00:07.5]} 61. Kh3 {[%clk 0:00:04.4]} 61... Qxf3+ {[%clk 0:00:07.6]} 62. Kh4
{[%clk 0:00:04.9]} 62... Qh1+ {[%clk 0:00:07.4]} 63. Kg5 {[%clk 0:00:04.9]}
63... Qe4 {[%clk 0:00:07.1]} 64. Qg6 {[%clk 0:00:04.7]} 64... Qg2 {[%clk
0:00:06.6]} 65. Qf8+ {[%clk 0:00:04.8]} 65... Ne7 {[%clk 0:00:06.3]} 66. Qgf6
{[%clk 0:00:03.8]} 66... Bc5 {[%clk 0:00:05.2]} 67. Q8xe7+ {[%clk 0:00:04]}
67... Kd5 {[%clk 0:00:06.1]} 68. Qexe6# {[%clk 0:00:04.5]} 1-0

[Event "Early-Titled-Tuesday-Blitz-March-26-2024"]
[Site "Chess.com"]
[Date "2024.03.26"]
[Round "1"]
[White "xasid81"]
[Black "ernestina08chess"]
[Result "0-1"]
[WhiteElo "2591"]
[BlackElo "2248"]
[TimeControl "180+1"]
[EndTime "8:09:19 PDT"]
[Termination "ernestina08chess won by resignation"]

1. g3 {[%clk 0:02:59.7]} 1... Nf6 {[%clk 0:02:59.1]} 2. Bg2 {[%clk 0:02:59.2]}
2... g6 {[%clk 0:02:59.3]} 3. e4 {[%clk 0:02:58.5]} 3... d6 {[%clk 0:02:58.4]}
4. d4 {[%clk 0:02:58.4]} 4... Bg7 {[%clk 0:02:57]} 5. Nc3 {[%clk 0:02:58.4]}
5... O-O {[%clk 0:02:53.4]} 6. Nge2 {[%clk 0:02:58.3]} 6... c5 {[%clk
0:02:48.5]} 7. dxc5 {[%clk 0:02:56.8]} 7... dxc5 {[%clk 0:02:48.2]} 8. Qxd8
{[%clk 0:02:57.7]} 8... Rxd8 {[%clk 0:02:47.4]} 9. Be3 {[%clk 0:02:58.6]} 9...
Na6 {[%clk 0:02:39.2]} 10. h3 {[%clk 0:02:54.2]} 10... Be6 {[%clk 0:02:22]} 11.
Nf4 {[%clk 0:02:43]} 11... Bc8 {[%clk 0:02:05.5]} 12. a3 {[%clk 0:02:10.7]}
12... Rb8 {[%clk 0:01:47]} 13. Nb5 {[%clk 0:01:47]} 13... Bd7 {[%clk 0:01:34.3]}
14. c4 {[%clk 0:01:33]} 14... Bc6 {[%clk 0:01:19.5]} 15. Nd5 {[%clk 0:01:18.4]}
15... Nxd5 {[%clk 0:01:11.8]} 16. exd5 {[%clk 0:01:19.3]} 16... Bxb5 {[%clk
0:01:11.1]} 17. cxb5 {[%clk 0:01:20.2]} 17... Nc7 {[%clk 0:01:11.6]} 18. O-O-O
{[%clk 0:01:19.2]} 18... Nxb5 {[%clk 0:01:10.5]} 19. Kb1 {[%clk 0:01:15.6]}
19... b6 {[%clk 0:01:07.8]} 20. Rhe1 {[%clk 0:01:09.7]} 20... Nd6 {[%clk
0:01:02.4]} 21. Bg5 {[%clk 0:01:08.9]} 21... f6 {[%clk 0:00:51.2]} 22. Bf4
{[%clk 0:01:08.4]} 22... Bf8 {[%clk 0:00:46.7]} 23. Bxd6 {[%clk 0:01:07.2]}
23... exd6 {[%clk 0:00:33.7]} 24. Re6 {[%clk 0:01:08.1]} 24... Kf7 {[%clk
0:00:32.4]} 25. h4 {[%clk 0:01:06.3]} 25... Re8 {[%clk 0:00:31.1]} 26. Rde1
{[%clk 0:01:03.5]} 26... Rxe6 {[%clk 0:00:29.2]} 27. dxe6+ {[%clk 0:01:03.8]}
27... Ke7 {[%clk 0:00:28.6]} 28. Bd5 {[%clk 0:01:04.3]} 28... f5 {[%clk
0:00:26.3]} 29. h5 {[%clk 0:01:02.3]} 29... Bg7 {[%clk 0:00:26]} 30. Rh1 {[%clk
0:01:01.1]} 30... Rh8 {[%clk 0:00:23.6]} 31. Kc2 {[%clk 0:01:00.8]} 31... g5
{[%clk 0:00:20.2]} 32. b3 {[%clk 0:00:59.7]} 32... h6 {[%clk 0:00:20.2]} 33. Kd3
{[%clk 0:00:59.2]} 33... Be5 {[%clk 0:00:17.9]} 34. Rf1 {[%clk 0:00:57]} 34...
f4 {[%clk 0:00:17.3]} 35. g4 {[%clk 0:00:54.9]} 35... Rf8 {[%clk 0:00:16.8]} 36.
f3 {[%clk 0:00:54.2]} 36... a6 {[%clk 0:00:15.9]} 37. Ke4 {[%clk 0:00:54]} 37...
Kf6 {[%clk 0:00:13.3]} 38. Rd1 {[%clk 0:00:51.3]} 38... Rb8 {[%clk 0:00:12]} 39.
Kd3 {[%clk 0:00:48.6]} 39... b5 {[%clk 0:00:12]} 40. Rc1 {[%clk 0:00:44.2]}
40... a5 {[%clk 0:00:11.7]} 41. Rc2 {[%clk 0:00:38.4]} 41... Ke7 {[%clk
0:00:05.9]} 42. Ke4 {[%clk 0:00:38.2]} 42... Kf6 {[%clk 0:00:06]} 43. Re2 {[%clk
0:00:37.4]} 43... Rb6 {[%clk 0:00:05.2]} 44. Ra2 {[%clk 0:00:37.4]} 44... Rb8
{[%clk 0:00:04.9]} 45. a4 {[%clk 0:00:37.6]} 45... b4 {[%clk 0:00:04.8]} 46. Kd3
{[%clk 0:00:36.6]} 46... Rb6 {[%clk 0:00:04.7]} 47. Kc4 {[%clk 0:00:36.8]} 47...
Rb8 {[%clk 0:00:05.3]} 48. Re2 {[%clk 0:00:36.4]} 48... Ke7 {[%clk 0:00:04.9]}
49. Re4 {[%clk 0:00:34.7]} 49... Kf6 {[%clk 0:00:04.4]} 50. Re1 {[%clk
0:00:34.1]} 50... Rb6 {[%clk 0:00:03.9]} 51. Rd1 {[%clk 0:00:32.8]} 51... Rb8
{[%clk 0:00:03.8]} 52. Be4 {[%clk 0:00:33.4]} 52... Ke7 {[%clk 0:00:03.5]} 53.
Bf5 {[%clk 0:00:34.3]} 53... Kf6 {[%clk 0:00:04]} 54. Rd5 {[%clk 0:00:33.7]}
54... Rb6 {[%clk 0:00:04.5]} 55. Kd3 {[%clk 0:00:33.7]} 55... Rb8 {[%clk
0:00:04.7]} 56. Ke4 {[%clk 0:00:32.4]} 56... Rb6 {[%clk 0:00:04.8]} 57. Rd3
{[%clk 0:00:32.4]} 57... Rb8 {[%clk 0:00:05.1]} 58. Kd5 {[%clk 0:00:32.6]} 58...
Rb6 {[%clk 0:00:05]} 59. Rd1 {[%clk 0:00:33.1]} 59... Ke7 {[%clk 0:00:05.1]} 60.
Re1 {[%clk 0:00:33.2]} 60... Kf6 {[%clk 0:00:05.7]} 61. Re2 {[%clk 0:00:33.3]}
61... Ke7 {[%clk 0:00:05]} 62. Bd3 {[%clk 0:00:33.5]} 62... Kf6 {[%clk
0:00:04.9]} 63. Bc4 {[%clk 0:00:33.1]} 63... Ke7 {[%clk 0:00:05.2]} 64. Rxe5
{[%clk 0:00:33.3]} 64... dxe5 {[%clk 0:00:05.2]} 65. Kxe5 {[%clk 0:00:33.5]}
65... Rd6 {[%clk 0:00:05.9]} 66. Bd5 {[%clk 0:00:32.5]} 66... Rd8 {[%clk
0:00:05.4]} 67. Bc4 {[%clk 0:00:28.8]} 67... Rd1 {[%clk 0:00:05.8]} 68. Kf5
{[%clk 0:00:28.7]} 68... Rc1 {[%clk 0:00:03]} 69. Bd5 {[%clk 0:00:27.4]} 69...
Rc3 {[%clk 0:00:03.2]} 70. Kg6 {[%clk 0:00:27.4]} 70... c4 {[%clk 0:00:03.7]}
71. bxc4 {[%clk 0:00:26.5]} 71... b3 {[%clk 0:00:04.1]} 72. Kxh6 {[%clk
0:00:26.2]} 72... b2 {[%clk 0:00:04.6]} 73. Be4 {[%clk 0:00:26.6]} 73... Rc1
{[%clk 0:00:04.7]} 74. Kg7 {[%clk 0:00:20.6]} 74... Rxc4 {[%clk 0:00:04.1]} 75.
Bf5 {[%clk 0:00:18.1]} 75... Rc5 {[%clk 0:00:03.8]} 76. h6 {[%clk 0:00:18]}
76... Rxf5 {[%clk 0:00:03.8]} 77. gxf5 {[%clk 0:00:18.9]} 77... b1=Q {[%clk
0:00:04.1]} 78. f6+ {[%clk 0:00:18]} 78... Kxe6 {[%clk 0:00:03.8]} 79. h7 {[%clk
0:00:18.9]} 79... Qb7+ {[%clk 0:00:03.9]} 80. Kg6 {[%clk 0:00:16.4]} 80... Qf7+
{[%clk 0:00:04.2]} 81. Kh6 {[%clk 0:00:16.9]} 81... Qxf6+ {[%clk 0:00:04.6]} 82.
Kh5 {[%clk 0:00:16.9]} 82... Qh8 {[%clk 0:00:04.8]} 83. Kh6 {[%clk 0:00:16.8]}
83... Qf6+ {[%clk 0:00:04.8]} 84. Kh5 {[%clk 0:00:17]} 84... Qg7 {[%clk
0:00:05.4]} 85. Kg4 {[%clk 0:00:16.8]} 85... Qxh7 {[%clk 0:00:06]} 86. Kxg5
{[%clk 0:00:17.7]} 86... Qf5+ {[%clk 0:00:06.1]} 87. Kh4 {[%clk 0:00:18]} 87...
Qd3 {[%clk 0:00:06.2]} 88. Kg4 {[%clk 0:00:18.4]} 88... Qd4 {[%clk 0:00:06.9]}
89. Kg5 {[%clk 0:00:18.5]} 89... Qxa4 {[%clk 0:00:07.5]} 90. Kg4 {[%clk
0:00:19.4]} 90... Qd4 {[%clk 0:00:08.1]} 0-1